[Event "6th Porticcio Open 2019"]
[Site "Porticcio"]
[Date "2019.07.02"]
[Round "5.7"]
[White "Defromont, Benjamin"]
[Black "Kirk, Ezra"]
[Result "0-1"]
[ECO "B31"]
[WhiteElo "2218"]
[BlackElo "2428"]
[Annotator "NA"]
[PlyCount "88"]
[EventDate "2019.06.23"]
[EventType "swiss"]
[EventCountry "FRA"]
[SourceTitle "playchess.com"]
[Source "ChessBase"]
[SourceQuality "1"]
[TimeControl "5400+30"]

1. e4 {[%emt 0:01:51]} c5 {[%emt 0:00:00]} 2. Nf3 {[%emt 0:00:06]} Nc6 {[%emt 0:00:00]} 3. Bb5 {[%emt 0:00:06]} g6 {[%emt 0:00:43]} 4. O-O {[%emt 0:00:22]} Bg7 {[%emt 0:00:07]} 5. Re1 {[%emt 0:00:10]} Nf6 {[%emt 0:01:22]} 6. e5 {[%emt 0:00:10]} Nd5 {[%emt 0:00:06]} 7. Nc3 {[%emt 0:00:08]} Nc7 {[%emt 0:00:05]} 8. Bxc6 {[%emt 0:00:05]} dxc6 {[%emt 0:00:04]} 9. Ne4 {[%emt 0:00:09]} b6 {[%emt 0:00:20]} 10. Nf6+ {[%emt 0:00:13]} Kf8 {[%emt 0:00:04]} 11. Ne4 {[%emt 0:00:05]} Bg4 {[%emt 0:03:48]} 12. d3 {[%emt 0:01:15]} Ne6 {[%emt 0:02:18]} 13. Ned2 {[%emt 0:01:18]} g5 {[%emt 0:01:21]} 14. h3 {[%emt 0:07:50]} Bh5 {[%emt 0:01:58]} 15. Ne4 {[%emt 0:02:12]} h6 {[%emt 0:01:09]} 16. Ng3 {[%emt 0:13:39]} Bg6 {[%emt 0:01:43]} 17. b3 {[%emt 0:01:13]} Qd5 {[%emt 0:01:19]} 18. Bb2 {[%emt 0:03:47]} Rd8 {[%emt 0:06:29]} 19. a4 {[%emt 0:01:27]} Nf4 {[%emt 0:14:21]} 20. Re3 {[%emt 0:07:45]} Kg8 {[%emt 0:15:30]} 21. Ne2 {[%emt 0:03:49]} Ne6 {[%emt 0:05:38]} 22. Qf1 {[%emt 0:10:13]} h5 {[%emt 0:07:29]} 23. h4 {[%emt 0:06:18]} g4 {[%emt 0:04:42]} 24. Ng5 {[%emt 0:01:25]} Nxg5 {[%emt 0:00:46]} 25. hxg5 {[%emt 0:01:54]} Qe6 {[%emt 0:00:42]} 26. d4 {[%emt 0:12:18]} Qf5 {[%emt 0:01:38]} 27. dxc5 {[%emt 0:02:29]} bxc5 {[%emt 0:00:36]} 28. Rc3 {[%emt 0:00:58]} Qxe5 {[%emt 0:10:45]} 29. Rd3 {[%emt 0:01:24]} Qc7 {[%emt 0:00:03]} 30. Rxd8+ {[%emt 0:00:42]} Qxd8 {[%emt 0:00:05]} 31. Bxg7 {[%emt 0:01:45]} Kxg7 {[%emt 0:00:04]} 32. Qe1 {[%emt 0:05:17]} e5 {[%emt 0:04:29]} 33. Qc3 {[%emt 0:03:22]} Qxg5 {[%emt 0:00:08]} 34. Qxc5 {[%emt 0:00:03]} h4 {[%emt 0:00:49]} 35. Qxa7 {[%emt 0:02:01]} Bxc2 {[%emt 0:04:21]} 36. Qc5 {[%emt 0:03:08]} Bd3 {[%emt 0:02:39]} 37. Re1 {[%emt 0:01:54]} g3 {[%emt 0:04:01]} 38. f4 {[%emt 0:01:59]} Qf5 {[%emt 0:00:52]} 39. Nc1 {[%emt 0:02:13]} Be4 {[%emt 0:01:13]} 40. Qe3 {[%emt 0:01:00]} Rd8 {[%emt 0:00:32]} 41. fxe5 {[%emt 0:00:31]} Qxe5 {[%emt 0:00:33]} 42. Kf1 {[%emt 0:01:42]} h3 {[%emt 0:01:29]} 43. gxh3 {[%emt 0:00:26]} Qf5+ {[%emt 0:01:16]} 44. Ke2 {[%emt 0:00:41]} Qh5+ {[%emt 0:00:12]} 0-1

[Event "6th Porticcio Open 2019"]
[Site "Porticcio"]
[Date "2019.07.02"]
[Round "5.8"]
[White "Can, Isik"]
[Black "Soubirou, Oriane"]
[Result "1-0"]
[ECO "B06"]
[WhiteElo "2379"]
[BlackElo "2129"]
[Annotator "ChessBase"]
[PlyCount "63"]
[EventDate "2019.06.23"]
[EventType "swiss"]
[EventCountry "FRA"]
[SourceTitle "playchess.com"]
[Source "ChessBase"]
[SourceQuality "1"]
[TimeControl "5400+30"]

1. e4 {[%emt 0:00:00]} g6 {[%emt 0:02:03]} 2. d4 {[%emt 0:00:00]} Nf6 {[%emt 0:00:07]} 3. e5 {[%emt 0:00:00]} Nh5 {[%emt 0:00:07]} 4. Nf3 {[%emt 0:00:00]} d6 {[%emt 0:00:28]} 5. Bc4 {[%emt 0:00:00]} d5 {[%emt 0:00:54]} 6. Bb3 {[%emt 0:00:02]} Ng7 {[%emt 0:01:46]} 7. c4 {[%emt 0:05:54]} c6 {[%emt 0:01:48]} 8. Nc3 {[%emt 0:01:14]} dxc4 {[%emt 0:03:00]} 9. Bxc4 {[%emt 0:00:06]} Ne6 {[%emt 0:00:16]} 10. Be3 {[%emt 0:03:15]} Bg7 {[%emt 0:03:46]} 11. h4 {[%emt 0:02:24]} h6 {[%emt 0:01:01]} 12. Qd2 {[%emt 0:01:53]} Na6 {[%emt 0:06:08]} 13. O-O-O {[%emt 0:10:15]} Nac7 {[%emt 0:01:19]} 14. Kb1 {[%emt 0:05:13]} b5 {[%emt 0:05:49]} 15. Bd3 {[%emt 0:02:00]} b4 {[%emt 0:04:40]} 16. Ne4 {[%emt 0:02:09]} Nd5 {[%emt 0:00:52]} 17. Rc1 {[%emt 0:01:54]} b3 {[%emt 0:12:15]} 18. a3 {[%emt 0:03:38]} Qb6 {[%emt 0:01:49]} 19. Nc5 {[%emt 0:00:46]} a5 {[%emt 0:03:19]} 20. Be4 {[%emt 0:02:37]} Nec7 {[%emt 0:07:22]} 21. Qd3 {[%emt 0:03:18]} Bf8 {[%emt 0:11:21]} 22. Qxb3 {[%emt 0:02:41]} Rb8 {[%emt 0:02:55]} 23. Qxb6 {[%emt 0:00:41]} Rxb6 {[%emt 0:00:12]} 24. Bd2 {[%emt 0:00:54]} Nb5 {[%emt 0:01:39]} 25. a4 {[%emt 0:01:46]} Na7 {[%emt 0:00:06]} 26. Bxa5 {[%emt 0:00:04]} Rb8 {[%emt 0:00:10]} 27. e6 {[%emt 0:04:17]} f5 {[%emt 0:01:30]} 28. Bxd5 {[%emt 0:00:25]} cxd5 {[%emt 0:00:04]} 29. Nd7 {[%emt 0:03:28]} Rb7 {[%emt 0:01:20]} 30. Rc5 {[%emt 0:00:34]} Bxd7 {[%emt 0:01:24]} 31. exd7+ {[%emt 0:00:06]} Kxd7 {[%emt 0:01:17]} 32. Rhc1 {[%emt 0:00:04]} 1-0

[Event "6th Porticcio Open 2019"]
[Site "Porticcio"]
[Date "2019.07.03"]
[Round "6.2"]
[White "Zhigalko, Sergei"]
[Black "Lagarde, Maxime"]
[Result "1/2-1/2"]
[ECO "B40"]
[WhiteElo "2594"]
[BlackElo "2599"]
[Annotator "ChessBase"]
[PlyCount "96"]
[EventDate "2019.06.23"]
[EventType "swiss"]
[EventCountry "FRA"]
[SourceTitle "playchess.com"]
[Source "ChessBase"]
[SourceQuality "1"]
[TimeControl "5400+30"]

1. e4 {[%emt 0:00:00]} c5 {[%emt 0:03:21]} 2. Nf3 {[%emt 0:00:00]} e6 {[%emt 0:00:03]} 3. c3 {[%emt 0:00:19]} d5 {[%emt 0:00:05]} 4. exd5 {[%emt 0:00:58]} exd5 {[%emt 0:00:03]} 5. d4 {[%emt 0:00:27]} Nf6 {[%emt 0:01:56]} 6. Bb5+ {[%emt 0:00:29]} Bd7 {[%emt 0:00:50]} 7. Bxd7+ {[%emt 0:01:02]} Nbxd7 {[%emt 0:00:04]} 8. O-O {[%emt 0:01:00]} Be7 {[%emt 0:00:04]} 9. Qb3 {[%emt 0:12:11]} Qc7 {[%emt 0:10:18]} 10. Re1 {[%emt 0:04:03]} c4 {[%emt 0:02:31]} 11. Qa4 {[%emt 0:05:50]} a6 {[%emt 0:03:20]} 12. Bg5 {[%emt 0:01:54]} b5 {[%emt 0:06:01]} 13. Qc2 {[%emt 0:02:02]} Qd6 {[%emt 0:12:09]} 14. Qe2 {[%emt 0:11:51]} Nf8 {[%emt 0:04:15]} 15. Nh4 {[%emt 0:04:05]} g6 {[%emt 0:05:31]} 16. Qf3 {[%emt 0:00:13]} O-O-O {[%emt 0:08:34]} 17. Nd2 {[%emt 0:25:04]} h6 {[%emt 0:02:03]} 18. Bf4 {[%emt 0:00:10]} Qd7 {[%emt 0:00:08]} 19. a4 {[%emt 0:01:40]} Ne6 {[%emt 0:03:35]} 20. Bg3 {[%emt 0:08:45]} Ng5 {[%emt 0:06:52]} 21. Qf4 {[%emt 0:04:44]} Kb7 {[%emt 0:00:31]} 22. axb5 {[%emt 0:02:03]} axb5 {[%emt 0:00:10]} 23. Ra5 {[%emt 0:01:38]} Ne6 {[%emt 0:03:12]} 24. Qe3 {[%emt 0:04:34]} Ra8 {[%emt 0:01:00]} 25. Rxa8 {[%emt 0:01:11]} Rxa8 {[%emt 0:00:03]} 26. Nhf3 {[%emt 0:01:08]} Ra6 {[%emt 0:04:22]} 27. Ne5 {[%emt 0:00:25]} Qe8 {[%emt 0:00:05]} 28. Qxh6 {[%emt 0:00:20]} Nh5 {[%emt 0:05:43]} 29. Ndf3 {[%emt 0:03:45]} b4 {[%emt 0:01:11]} 30. Qh7 {[%emt 0:00:30]} Nhg7 {[%emt 0:00:56]} 31. h3 {[%emt 0:02:24]} b3 {[%emt 0:00:09]} 32. Nxc4 {[%emt 0:00:24]} dxc4 {[%emt 0:00:05]} 33. d5 {[%emt 0:00:01]} Bf6 {[%emt 0:01:49]} 34. dxe6 {[%emt 0:00:43]} Rxe6 {[%emt 0:00:14]} 35. Rxe6 {[%emt 0:00:45]} Nxe6 {[%emt 0:01:00]} 36. Kh2 {[%emt 0:00:48]} Nc5 {[%emt 0:05:01]} 37. Nd2 {[%emt 0:00:02]} Qe6 {[%emt 0:00:05]} 38. Qg8 {[%emt 0:00:09]} Be5 {[%emt 0:00:12]} 39. Qd8 {[%emt 0:00:25]} Bxg3+ {[%emt 0:01:18]} 40. fxg3 {[%emt 0:00:01]} Na4 {[%emt 0:03:15]} 41. Ne4 {[%emt 0:01:38]} Qxe4 {[%emt 0:00:47]} 42. Qd7+ {[%emt 0:00:01]} Kb6 {[%emt 0:00:25]} 43. Qxa4 {[%emt 0:00:02]} Qe2 {[%emt 0:00:12]} 44. Qd7 {[%emt 0:01:42]} Qxb2 {[%emt 0:00:37]} 45. Qd6+ {[%emt 0:00:07]} Kb7 {[%emt 0:00:07]} 46. Qd7+ {[%emt 0:00:09]} Kb6 {[%emt 0:00:03]} 47. Qd6+ {[%emt 0:00:10]} Kb7 {[%emt 0:00:03]} 48. Qd7+ {[%emt 0:00:04]} Kb6 1/2-1/2

[Event "6th Porticcio Open 2019"]
[Site "Porticcio"]
[Date "2019.07.03"]
[Round "6.3"]
[White "Kirk, Ezra"]
[Black "Yankelevich, Lev"]
[Result "1-0"]
[ECO "C50"]
[WhiteElo "2428"]
[BlackElo "2484"]
[Annotator "ChessBase"]
[PlyCount "59"]
[EventDate "2019.06.23"]
[EventType "swiss"]
[EventCountry "FRA"]
[SourceTitle "playchess.com"]
[Source "ChessBase"]
[SourceQuality "1"]
[TimeControl "5400+30"]

1. e4 {[%emt 0:04:51]} e5 {[%emt 0:00:00]} 2. Nf3 {[%emt 0:00:05]} Nc6 {[%emt 0:00:00]} 3. Bc4 {[%emt 0:00:12]} Nf6 {[%emt 0:00:18]} 4. d3 {[%emt 0:00:10]} Bc5 {[%emt 0:00:07]} 5. O-O {[%emt 0:00:37]} d6 {[%emt 0:00:06]} 6. c3 {[%emt 0:00:35]} a6 {[%emt 0:00:04]} 7. Bb3 {[%emt 0:00:45]} Ba7 {[%emt 0:00:10]} 8. Nbd2 {[%emt 0:02:55]} O-O {[%emt 0:00:19]} 9. h3 {[%emt 0:01:13]} h6 {[%emt 0:01:39]} 10. Re1 {[%emt 0:00:28]} Re8 {[%emt 0:00:06]} 11. Nf1 {[%emt 0:00:19]} Be6 {[%emt 0:00:02]} 12. N3h2 {[%emt 0:00:48]} Bxb3 {[%emt 0:04:33]} 13. axb3 {[%emt 0:01:16]} Ne7 {[%emt 0:08:33]} 14. Ng3 {[%emt 0:02:44]} Ng6 {[%emt 0:02:28]} 15. Ng4 {[%emt 0:02:50]} Nxg4 {[%emt 0:00:27]} 16. Qxg4 {[%emt 0:03:24]} Qh4 {[%emt 0:01:12]} 17. Qf3 {[%emt 0:07:00]} Kh7 {[%emt 0:03:24]} 18. Be3 {[%emt 0:12:55]} Bxe3 {[%emt 0:02:06]} 19. fxe3 {[%emt 0:00:16]} Qg5 {[%emt 0:00:20]} 20. Kh2 {[%emt 0:04:26]} Nh4 {[%emt 0:01:59]} 21. Qf2 {[%emt 0:03:17]} Rad8 {[%emt 0:02:53]} 22. Rf1 {[%emt 0:04:00]} Re7 {[%emt 0:00:07]} 23. Qe2 {[%emt 0:04:21]} Rdd7 {[%emt 0:08:32]} 24. Rf2 {[%emt 0:08:47]} Re6 {[%emt 0:17:02]} 25. Raf1 {[%emt 0:01:53]} Rg6 {[%emt 0:03:34]} 26. Nh5 {[%emt 0:02:21]} Re6 {[%emt 0:02:29]} 27. g3 {[%emt 0:01:35]} Ng6 {[%emt 0:03:19]} 28. Rxf7 {[%emt 0:04:33]} Rxf7 {[%emt 0:01:29]} 29. Rxf7 {[%emt 0:00:11]} Re7 {[%emt 0:00:36]} 30. Rf5 {[%emt 0:00:53]} 1-0

[Event "6th Porticcio Open 2019"]
[Site "Porticcio"]
[Date "2019.07.03"]
[Round "6.6"]
[White "Libiszewski, Fabien"]
[Black "Onischuk, Vladimir"]
[Result "0-1"]
[ECO "B07"]
[WhiteElo "2518"]
[BlackElo "2630"]
[Annotator "ChessBase"]
[PlyCount "100"]
[EventDate "2019.06.23"]
[EventType "swiss"]
[EventCountry "FRA"]
[SourceTitle "playchess.com"]
[Source "ChessBase"]
[SourceQuality "1"]
[TimeControl "5400+30"]

1. e4 {[%emt 0:00:03]} d6 {[%emt 0:00:23]} 2. d4 {[%emt 0:00:09]} Nf6 {[%emt 0:00:32]} 3. Nc3 {[%emt 0:00:08]} g6 {[%emt 0:00:15]} 4. Bg5 {[%emt 0:00:15]} h6 {[%emt 0:01:38]} 5. Be3 {[%emt 0:01:57]} c6 {[%emt 0:01:55]} 6. h3 {[%emt 0:02:33]} Qa5 {[%emt 0:11:12]} 7. Qd2 {[%emt 0:11:08]} Nbd7 {[%emt 0:06:09]} 8. Nf3 {[%emt 0:01:00]} Bg7 {[%emt 0:04:50]} 9. a3 {[%emt 0:12:28]} Qc7 {[%emt 0:14:27]} 10. Rd1 {[%emt 0:13:49]} Kf8 {[%emt 0:01:50]} 11. Nh4 {[%emt 0:25:16]} Kg8 {[%emt 0:05:47]} 12. f4 {[%emt 0:00:09]} c5 {[%emt 0:11:00]} 13. Nf3 {[%emt 0:05:06]} Kh7 {[%emt 0:07:47]} 14. g4 {[%emt 0:03:47]} b5 {[%emt 0:08:35]} 15. Bxb5 {[%emt 0:09:11]} cxd4 {[%emt 0:02:20]} 16. Bxd4 {[%emt 0:00:37]} Bb7 {[%emt 0:01:28]} 17. O-O {[%emt 0:01:12]} Nc5 {[%emt 0:01:50]} 18. Bd3 {[%emt 0:01:20]} Rhd8 {[%emt 0:02:42]} 19. g5 {[%emt 0:00:47]} Nfxe4 {[%emt 0:03:00]} 20. Bxe4 {[%emt 0:00:19]} Nxe4 {[%emt 0:00:18]} 21. Nxe4 {[%emt 0:00:19]} Bxe4 {[%emt 0:00:08]} 22. Bxg7 {[%emt 0:00:25]} Bxf3 {[%emt 0:00:06]} 23. Rxf3 {[%emt 0:00:19]} Kxg7 {[%emt 0:00:06]} 24. gxh6+ {[%emt 0:01:27]} Kh7 {[%emt 0:00:26]} 25. Qd4 {[%emt 0:04:16]} Rg8 {[%emt 0:03:08]} 26. c4 {[%emt 0:00:29]} a5 {[%emt 0:01:12]} 27. Qd5 {[%emt 0:00:42]} Raf8 {[%emt 0:08:56]} 28. b4 {[%emt 0:01:00]} axb4 {[%emt 0:00:18]} 29. axb4 {[%emt 0:00:04]} e6 {[%emt 0:00:51]} 30. Qxd6 {[%emt 0:02:43]} Qxc4 {[%emt 0:00:04]} 31. Qd4 {[%emt 0:00:35]} Qb5 {[%emt 0:00:22]} 32. Rdf1 {[%emt 0:00:41]} Rd8 {[%emt 0:00:23]} 33. Qc5 {[%emt 0:00:56]} Qb7 {[%emt 0:00:10]} 34. Qc3 {[%emt 0:00:53]} Rd5 {[%emt 0:00:40]} 35. Kh2 {[%emt 0:00:36]} Kxh6 {[%emt 0:00:55]} 36. R1f2 {[%emt 0:00:37]} Rc8 {[%emt 0:00:47]} 37. Qf6 {[%emt 0:00:32]} Rf5 {[%emt 0:00:09]} 38. Qb2 {[%emt 0:00:08]} Kh7 {[%emt 0:00:10]} 39. Rg3 {[%emt 0:00:34]} Rh5 {[%emt 0:00:26]} 40. Rd2 {[%emt 0:00:38]} Qe4 {[%emt 0:00:54]} 41. Qd4 {[%emt 0:00:21]} Qf5 {[%emt 0:00:23]} 42. Rdg2 {[%emt 0:00:52]} Rc1 {[%emt 0:00:42]} 43. Re2 {[%emt 0:00:30]} Qb1 {[%emt 0:01:22]} 44. Qe4 {[%emt 0:00:03]} Qa1 {[%emt 0:00:44]} 45. Rb3 {[%emt 0:00:49]} Rd5 {[%emt 0:00:30]} 46. b5 {[%emt 0:00:24]} Rdd1 {[%emt 0:00:13]} 47. Rg2 {[%emt 0:00:31]} Rh1+ {[%emt 0:00:27]} 48. Kg3 {[%emt 0:00:02]} Rc3+ {[%emt 0:00:21]} 49. Rxc3 {[%emt 0:00:10]} Qxc3+ {[%emt 0:00:06]} 50. Kf2 {[%emt 0:00:04]} Rxh3 {[%emt 0:00:13]} 0-1

[Event "6th Porticcio Open 2019"]
[Site "Porticcio"]
[Date "2019.07.03"]
[Round "6.7"]
[White "Sonis, Francesco"]
[Black "Krasenkow, Michal"]
[Result "1/2-1/2"]
[ECO "A41"]
[WhiteElo "2498"]
[BlackElo "2620"]
[Annotator "ChessBase"]
[PlyCount "109"]
[EventDate "2019.06.23"]
[EventType "swiss"]
[EventCountry "FRA"]
[SourceTitle "playchess.com"]
[Source "ChessBase"]
[SourceQuality "1"]
[TimeControl "5400+30"]

1. Nf3 {[%emt 0:00:00]} d6 {[%emt 0:00:00]} 2. d4 {[%emt 0:00:03]} Bg4 {[%emt 0:00:00]} 3. Nbd2 {[%emt 0:01:32]} Nd7 {[%emt 0:02:35]} 4. h3 {[%emt 0:00:11]} Bh5 {[%emt 0:00:15]} 5. e4 {[%emt 0:02:09]} e5 {[%emt 0:00:39]} 6. c3 {[%emt 0:00:07]} Ngf6 {[%emt 0:01:24]} 7. Bd3 {[%emt 0:00:30]} Be7 {[%emt 0:00:38]} 8. O-O {[%emt 0:00:18]} O-O {[%emt 0:00:51]} 9. Re1 {[%emt 0:00:48]} c6 {[%emt 0:00:43]} 10. Nf1 {[%emt 0:02:36]} Re8 {[%emt 0:00:54]} 11. Ng3 {[%emt 0:00:08]} Bg6 {[%emt 0:00:36]} 12. Qc2 {[%emt 0:12:18]} Bf8 {[%emt 0:01:01]} 13. Be3 {[%emt 0:02:17]} exd4 {[%emt 0:07:24]} 14. cxd4 {[%emt 0:00:26]} c5 {[%emt 0:00:08]} 15. dxc5 {[%emt 0:13:56]} Nxc5 {[%emt 0:04:32]} 16. Bxc5 {[%emt 0:01:28]} dxc5 {[%emt 0:01:11]} 17. Rad1 {[%emt 0:00:05]} Qc7 {[%emt 0:00:47]} 18. e5 {[%emt 0:05:43]} Bxd3 {[%emt 0:03:22]} 19. Qxd3 {[%emt 0:08:41]} Rad8 {[%emt 0:01:08]} 20. Qf5 {[%emt 0:00:06]} Nd5 {[%emt 0:01:47]} 21. Ng5 {[%emt 0:01:50]} g6 {[%emt 0:00:56]} 22. Qf3 {[%emt 0:00:03]} h6 {[%emt 0:06:52]} 23. Rxd5 {[%emt 0:02:04]} hxg5 {[%emt 0:01:35]} 24. Rxd8 {[%emt 0:00:18]} Rxd8 {[%emt 0:00:45]} 25. Ne4 {[%emt 0:00:43]} Be7 {[%emt 0:03:15]} 26. Nf6+ {[%emt 0:08:45]} Kg7 {[%emt 0:00:47]} 27. Qg3 {[%emt 0:00:50]} Qa5 {[%emt 0:05:57]} 28. Re3 {[%emt 0:02:03]} Qxa2 {[%emt 0:03:31]} 29. Qxg5 {[%emt 0:00:05]} Qe6 {[%emt 0:01:04]} 30. Nh5+ {[%emt 0:01:25]} Kg8 {[%emt 0:03:31]} 31. Nf6+ {[%emt 0:00:10]} Bxf6 {[%emt 0:01:41]} 32. exf6 {[%emt 0:00:03]} Qf5 {[%emt 0:00:13]} 33. Qh4 {[%emt 0:02:13]} b5 {[%emt 0:03:41]} 34. f4 {[%emt 0:03:32]} Qh5 {[%emt 0:10:03]} 35. Qxh5 {[%emt 0:06:51]} gxh5 {[%emt 0:00:11]} 36. Re5 {[%emt 0:00:03]} Rd2 {[%emt 0:03:40]} 37. Rxc5 {[%emt 0:02:28]} Rxb2 {[%emt 0:00:12]} 38. Rg5+ {[%emt 0:00:05]} Kh7 {[%emt 0:00:29]} 39. Rg7+ {[%emt 0:05:57]} Kh6 {[%emt 0:00:02]} 40. Rxf7 {[%emt 0:00:04]} Kg6 {[%emt 0:00:49]} 41. Rxa7 {[%emt 0:00:05]} Kxf6 {[%emt 0:00:16]} 42. Ra6+ {[%emt 0:01:46]} Kf5 {[%emt 0:03:09]} 43. Rh6 {[%emt 0:00:06]} Kxf4 {[%emt 0:00:39]} 44. Rxh5 {[%emt 0:00:04]} b4 {[%emt 0:00:07]} 45. Kh2 {[%emt 0:01:19]} b3 {[%emt 0:00:34]} 46. Rb5 {[%emt 0:00:05]} Ke4 {[%emt 0:02:19]} 47. h4 {[%emt 0:00:03]} Kd4 {[%emt 0:00:11]} 48. h5 {[%emt 0:08:20]} Kc3 {[%emt 0:00:33]} 49. Kh3 Rb1 {[%emt 0:14:04]} 50. g4 {[%emt 0:04:04]} Rh1+ {[%emt 0:00:58]} 51. Kg2 {[%emt 0:00:11]} Rh4 {[%emt 0:00:06]} 52. Kg3 {[%emt 0:00:01]} Rh1 {[%emt 0:00:07]} 53. Kg2 {[%emt 0:00:01]} Rh4 {[%emt 0:00:08]} 54. Kg3 {[%emt 0:00:12]} Rh1 {[%emt 0:00:06]} 55. Kg2 {[%emt 0:03:06]} 1/2-1/2

[Event "6th Porticcio Open 2019"]
[Site "Porticcio"]
[Date "2019.07.03"]
[Round "6.8"]
[White "Debray, Christopher"]
[Black "Vocaturo, Daniele"]
[Result "0-1"]
[ECO "E01"]
[WhiteElo "2352"]
[BlackElo "2612"]
[Annotator "ChessBase"]
[PlyCount "96"]
[EventDate "2019.06.23"]
[EventType "swiss"]
[EventCountry "FRA"]
[SourceTitle "playchess.com"]
[Source "ChessBase"]
[SourceQuality "1"]
[TimeControl "5400+30"]

1. d4 {[%emt 0:00:09]} Nf6 {[%emt 0:00:00]} 2. c4 {[%emt 0:00:08]} e6 {[%emt 0:00:23]} 3. g3 {[%emt 0:00:09]} d5 {[%emt 0:00:47]} 4. Bg2 {[%emt 0:00:12]} Bb4+ {[%emt 0:00:36]} 5. Nd2 {[%emt 0:00:03]} O-O {[%emt 0:00:47]} 6. Ngf3 {[%emt 0:00:03]} dxc4 {[%emt 0:01:07]} 7. Qc2 {[%emt 0:00:09]} a5 {[%emt 0:00:49]} 8. Qxc4 {[%emt 0:05:01]} b6 {[%emt 0:00:55]} 9. a3 {[%emt 0:01:13]} Be7 {[%emt 0:04:03]} 10. Ne5 {[%emt 0:04:34]} Ba6 {[%emt 0:01:37]} 11. Qc2 {[%emt 0:00:15]} Ra7 {[%emt 0:01:02]} 12. Ndf3 {[%emt 0:03:19]} c5 {[%emt 0:01:34]} 13. dxc5 {[%emt 0:00:26]} Bxc5 {[%emt 0:00:22]} 14. Nd3 {[%emt 0:04:36]} Rc7 {[%emt 0:09:13]} 15. Nxc5 {[%emt 0:00:26]} Rxc5 {[%emt 0:00:06]} 16. Qd2 {[%emt 0:02:48]} Qc8 {[%emt 0:06:00]} 17. O-O {[%emt 0:00:38]} Rc2 {[%emt 0:01:31]} 18. Qd6 {[%emt 0:00:58]} Nc6 {[%emt 0:04:32]} 19. Nd4 {[%emt 0:03:21]} Rd8 {[%emt 0:04:07]} 20. Nxc6 {[%emt 0:00:27]} Rxd6 {[%emt 0:00:56]} 21. Ne7+ {[%emt 0:00:01]} Kf8 {[%emt 0:00:15]} 22. Nxc8 {[%emt 0:00:02]} Rxc8 {[%emt 0:00:43]} 23. Bf4 {[%emt 0:01:34]} Rd7 {[%emt 0:01:18]} 24. Be3 {[%emt 0:07:56]} Nd5 {[%emt 0:02:05]} 25. Bxd5 {[%emt 0:03:49]} Rxd5 {[%emt 0:00:05]} 26. Rfc1 {[%emt 0:04:11]} Rxc1+ {[%emt 0:02:05]} 27. Rxc1 {[%emt 0:00:01]} Bxe2 {[%emt 0:00:24]} 28. Bxb6 {[%emt 0:00:28]} a4 {[%emt 0:04:20]} 29. Bc5+ {[%emt 0:06:05]} Ke8 {[%emt 0:00:29]} 30. Kg2 {[%emt 0:04:08]} g5 {[%emt 0:02:12]} 31. h3 {[%emt 0:02:30]} h5 {[%emt 0:00:18]} 32. Be3 {[%emt 0:07:20]} g4 {[%emt 0:00:30]} 33. h4 {[%emt 0:00:45]} f6 {[%emt 0:01:41]} 34. Kh2 {[%emt 0:00:27]} e5 {[%emt 0:04:12]} 35. Rc2 {[%emt 0:00:36]} Bf3 {[%emt 0:01:12]} 36. Rd2 {[%emt 0:00:26]} Rb5 {[%emt 0:00:38]} 37. Kg1 {[%emt 0:02:27]} Rb7 {[%emt 0:00:33]} 38. Bc5 {[%emt 0:02:47]} Rc7 {[%emt 0:01:24]} 39. Rc2 {[%emt 0:00:01]} Rd7 {[%emt 0:00:42]} 40. Rc1 {[%emt 0:00:28]} Rd2 {[%emt 0:00:42]} 41. Rb1 {[%emt 0:00:47]} Rc2 {[%emt 0:04:02]} 42. Bb4 {[%emt 0:00:44]} Be2 {[%emt 0:00:33]} 43. Bc3 {[%emt 0:01:34]} Kf7 {[%emt 0:00:10]} 44. Kg2 {[%emt 0:01:37]} Ke6 {[%emt 0:00:16]} 45. Re1 {[%emt 0:00:10]} Kd5 {[%emt 0:02:04]} 46. Rb1 {[%emt 0:01:24]} f5 {[%emt 0:01:18]} 47. Kh2 {[%emt 0:03:30]} f4 {[%emt 0:01:49]} 48. Re1 {[%emt 0:02:44]} f3 {[%emt 0:05:51]} 0-1

[Event "6th Porticcio Open 2019"]
[Site "Porticcio"]
[Date "2019.07.04"]
[Round "7.1"]
[White "Lagarde, Maxime"]
[Black "Donchenko, Alexander"]
[Result "1-0"]
[ECO "B53"]
[WhiteElo "2599"]
[BlackElo "2618"]
[Annotator "ChessBase"]
[PlyCount "109"]
[EventDate "2019.06.23"]
[EventType "swiss"]
[EventCountry "FRA"]
[SourceTitle "playchess.com"]
[Source "ChessBase"]
[SourceQuality "1"]
[TimeControl "5400+30"]

1. e4 {[%emt 0:03:51]} c5 {[%emt 0:00:00]} 2. Nf3 {[%emt 0:00:26]} d6 {[%emt 0:00:00]} 3. d4 {[%emt 0:00:02]} cxd4 4. Qxd4 {[%emt 0:00:03]} Nc6 {[%emt 0:01:58]} 5. Qe3 {[%emt 0:00:05]} g6 {[%emt 0:02:34]} 6. Be2 {[%emt 0:00:49]} Bg7 {[%emt 0:01:39]} 7. O-O {[%emt 0:00:11]} Nf6 {[%emt 0:00:08]} 8. h3 {[%emt 0:02:26]} O-O {[%emt 0:08:25]} 9. Rd1 {[%emt 0:00:17]} Be6 {[%emt 0:04:52]} 10. Nc3 {[%emt 0:01:18]} Qc7 {[%emt 0:04:37]} 11. a3 {[%emt 0:02:22]} a6 {[%emt 0:03:38]} 12. Qg5 {[%emt 0:17:44]} Rac8 {[%emt 0:05:14]} 13. Qh4 {[%emt 0:02:18]} Ne5 {[%emt 0:11:51]} 14. Nxe5 {[%emt 0:07:40]} dxe5 {[%emt 0:00:17]} 15. Be3 {[%emt 0:01:01]} b5 {[%emt 0:05:10]} 16. a4 {[%emt 0:20:29]} b4 {[%emt 0:00:43]} 17. Nd5 {[%emt 0:00:10]} Qb7 {[%emt 0:01:24]} 18. Bxa6 {[%emt 0:00:30]} Qxa6 {[%emt 0:00:52]} 19. Nxe7+ {[%emt 0:00:04]} Kh8 {[%emt 0:00:06]} 20. Nxc8 {[%emt 0:00:13]} Rxc8 {[%emt 0:03:18]} 21. Rd2 {[%emt 0:05:28]} h5 {[%emt 0:11:11]} 22. f3 {[%emt 0:02:41]} Kg8 {[%emt 0:03:39]} 23. b3 {[%emt 0:02:29]} Nd7 {[%emt 0:02:29]} 24. Rad1 {[%emt 0:00:56]} Bf6 {[%emt 0:00:47]} 25. Bg5 {[%emt 0:01:37]} Qa7+ {[%emt 0:00:22]} 26. Kh1 {[%emt 0:03:04]} Bg7 {[%emt 0:00:46]} 27. Be7 {[%emt 0:02:03]} Bh6 {[%emt 0:00:38]} 28. Bg5 {[%emt 0:01:32]} Bf8 {[%emt 0:00:53]} 29. g4 {[%emt 0:01:18]} Rc3 {[%emt 0:02:30]} 30. gxh5 {[%emt 0:00:15]} Rxf3 {[%emt 0:03:02]} 31. Rd3 {[%emt 0:00:23]} Rxd3 {[%emt 0:04:02]} 32. Rxd3 {[%emt 0:00:15]} Qc5 {[%emt 0:01:48]} 33. Rd2 {[%emt 0:07:25]} Qc3 {[%emt 0:00:50]} 34. Kh2 {[%emt 0:00:38]} Qf3 {[%emt 0:09:08]} 35. hxg6 {[%emt 0:04:48]} fxg6 {[%emt 0:00:02]} 36. Rf2 {[%emt 0:01:48]} Qd1 {[%emt 0:00:57]} 37. Bf6 {[%emt 0:03:08]} Qh5 {[%emt 0:00:51]} 38. Qxh5 {[%emt 0:00:41]} gxh5 {[%emt 0:00:02]} 39. a5 {[%emt 0:01:54]} Bd6 {[%emt 0:02:40]} 40. a6 {[%emt 0:00:42]} Bc5 {[%emt 0:01:30]} 41. Bh4 {[%emt 0:02:13]} Ba7 {[%emt 0:04:40]} 42. Rg2+ {[%emt 0:00:22]} Kf7 {[%emt 0:00:09]} 43. Bf2 {[%emt 0:00:04]} Nc5 {[%emt 0:00:18]} 44. Be3 {[%emt 0:01:09]} Bc8 {[%emt 0:00:31]} 45. Rf2+ {[%emt 0:01:01]} Ke7 {[%emt 0:01:02]} 46. Rg2 {[%emt 0:00:37]} Kd6 {[%emt 0:00:39]} 47. Rg7 {[%emt 0:01:54]} Bd7 {[%emt 0:00:06]} 48. Rh7 {[%emt 0:00:16]} Bb6 {[%emt 0:00:53]} 49. Rxh5 {[%emt 0:00:14]} Bc8 {[%emt 0:00:15]} 50. Rh6+ {[%emt 0:00:45]} Kc7 {[%emt 0:00:02]} 51. h4 {[%emt 0:00:21]} Nd7 {[%emt 0:01:29]} 52. Bxb6+ {[%emt 0:00:29]} Nxb6 {[%emt 0:00:01]} 53. h5 {[%emt 0:00:32]} Nd7 {[%emt 0:00:06]} 54. a7 {[%emt 0:00:50]} Bb7 {[%emt 0:00:25]} 55. Rh7 {[%emt 0:00:21]} 1-0